bitfinex/quotes_BTCUSD_20250812
["timestamp","ask_amount","ask_price","bid_price","bid_amount"]
[1755016551535,0.51685554,119670.0,119660.0,1e-08]
[1755016551810,1.6440805,119670.0,119660.0,1e-08]
[1755016553601,1.6482055,119670.0,119660.0,1e-08]
[1755016558342,1.7158159,119670.0,119660.0,1e-08]
[1755016558796,1.6482055,119670.0,119660.0,1e-08]
[1755016559228,1.6722055,119670.0,119660.0,1e-08]
[1755016559657,1.6732055,119670.0,119660.0,1e-08]
[1755016559988,1.6772055,119670.0,119660.0,1e-08]
[1755016560169,0.54998054,119670.0,119660.0,1e-08]
[1755016563603,0.16719612,119620.0,119610.0,0.00185]
[1755016563821,1.33047374,119620.0,119610.0,0.00385]
[1755016564044,0.76424883,119620.0,119610.0,0.00385]
[1755016564270,0.7308086,119620.0,119610.0,0.00385]
[1755016564489,0.7559076,119620.0,119610.0,0.00385]
[1755016564916,0.75602982,119620.0,119610.0,0.00385]
[1755016565616,0.21086636,119620.0,119610.0,0.00685]
[1755016565857,0.21086636,119620.0,119610.0,0.00885]
[1755016565858,0.77447884,119620.0,119610.0,0.00885]
[1755016566774,0.85696327,119620.0,119610.0,0.00885]
[1755016567285,0.77447884,119620.0,119610.0,0.007]
[1755016567509,1.33809132,119620.0,119610.0,0.007]
[1755016567731,0.77447884,119620.0,119610.0,0.007]
[1755016567960,0.90851884,119620.0,119610.0,0.007]
[1755016568182,1.47213132,119620.0,119610.0,0.007]
[1755016568398,1.55361575,119620.0,119610.0,0.004]
[1755016568634,1.55883575,119620.0,119610.0,0.002]
[1755016568843,1.55983575,119620.0,119610.0,0.002]
[1755016570242,0.18465911,119610.0,119600.0,0.0002]
[1755016570465,0.74827159,119610.0,119600.0,0.0002]
[1755016570681,0.83075602,119610.0,119600.0,0.00205]
[1755016570908,0.83075602,119610.0,119600.0,0.00405]
[1755016571137,0.83075602,119610.0,119600.0,0.0002]
[1755016571138,1.50759895,119610.0,119600.0,0.0002]
[1755016571576,1.64167895,119610.0,119600.0,0.0002]
[1755016571799,1.64167895,119610.0,119600.0,0.0022]
[1755016572242,0.51445399,119610.0,119600.0,0.0022]
[1755016572466,1.5540957,119610.0,119600.0,0.0042]
[1755016572683,1.47161127,119610.0,119600.0,0.0042]
[1755016573158,1.47161127,119610.0,119600.0,0.00605]
[1755016573159,0.77355879,119610.0,119600.0,0.00605]
[1755016573389,1.33717127,119610.0,119600.0,0.0042]
[1755016574845,0.20994631,119610.0,119600.0,0.00605]
[1755016575046,1.33717127,119610.0,119600.0,0.0042]
[1755016575470,1.4196557,119610.0,119600.0,0.0042]
[1755016576123,1.64199895,119610.0,119600.0,0.0022]
[1755016578272,0.51477399,119610.0,119600.0,0.0022]
[1755016578487,1.66710195,119610.0,119600.0,0.0022]
[1755016580062,1.36433427,119610.0,119600.0,0.0042]
[1755016580273,1.34482525,119610.0,119600.0,0.0042]
[1755016580474,1.36227427,119610.0,119600.0,0.0042]
[1755016580682,1.34482525,119610.0,119600.0,0.0042]
[1755016580904,1.43252968,119610.0,119600.0,0.0042]
[1755016581152,1.4499787,119610.0,119600.0,0.0042]
[1755016581473,1.4499787,119610.0,119600.0,0.0022]
[1755016581689,1.5846187,119610.0,119600.0,0.0022]
[1755016581920,0.45739374,119610.0,119600.0,0.0022]
[1755016582132,1.5846187,119610.0,119600.0,0.0022]
[1755016582346,1.49679427,119610.0,119600.0,0.0042]
[1755016582565,1.36227427,119610.0,119600.0,0.0042]
[1755016582781,0.7858519,119610.0,119600.0,0.0042]
[1755016584262,1.55915774,119610.0,119600.0,0.0022]
[1755016584449,1.64164217,119610.0,119600.0,0.0022]
[1755016585374,0.95627958,119610.0,119600.0,0.0022]
[1755016585573,0.45723374,119610.0,119600.0,0.0042]
[1755016585792,1.00803633,119610.0,119600.0,0.0042]
[1755016586019,0.9202519,119610.0,119600.0,0.0042]
[1755016586689,0.7858519,119610.0,119600.0,0.0042]
[1755016587773,0.30483834,119620.0,119600.0,0.17327408]
[1755016587774,0.16731834,119620.0,119600.0,0.17327408]
[1755016587994,0.71801268,119610.0,119600.0,0.00605]
[1755016588206,0.71801268,119610.0,119600.0,0.00802256]
[1755016588641,0.71801268,119610.0,119600.0,0.17524664]
[1755016588865,0.55080259,119610.0,119600.0,0.17327408]
[1755016589114,0.55080259,119610.0,119600.0,0.25599733]
[1755016589339,0.16731834,119620.0,119610.0,0.16721009]
[1755016589565,0.72073336,119620.0,119610.0,0.17118222]
[1755016589777,0.71812093,119620.0,119610.0,0.30542009]
[1755016590201,0.71702093,119620.0,119610.0,0.30542009]
[1755016591037,0.16721009,119610.0,119600.0,0.0002]
[1755016591308,0.72062533,119610.0,119600.0,0.30591664]
[1755016591495,0.71801268,119610.0,119600.0,0.30394408]
[1755016592174,0.71801268,119610.0,119600.0,0.13672]
[1755016592575,0.16721009,119610.0,119600.0,0.30591664]
[1755016592792,0.72062533,119610.0,119600.0,0.30394408]
[1755016593045,0.71801268,119610.0,119600.0,0.30394408]
[1755016593250,0.71801268,119610.0,119600.0,0.13872]
[1755016593661,0.71801268,119610.0,119600.0,0.30794408]
[1755016594096,1.37395872,119610.0,119600.0,0.0042]
[1755016594298,0.84825813,119610.0,119600.0,0.0042]
[1755016594669,0.84825813,119610.0,119600.0,0.0022]
[1755016594877,0.7657737,119610.0,119600.0,0.0022]
[1755016595093,0.7657737,119610.0,119600.0,0.0032]
[1755016595489,0.7657737,119610.0,119600.0,0.0012]
[1755016596484,0.77195135,119610.0,119600.0,0.0012]
[1755016596902,0.77195135,119610.0,119600.0,0.0022]
[1755016597213,1.62224162,119610.0,119600.0,0.0022]
[1755016597874,1.07143903,119610.0,119600.0,0.0012]
[1755016598092,1.07143903,119610.0,119600.0,0.0002]
[1755016598296,0.9889546,119610.0,119600.0,0.0002]
[1755016600802,0.99710978,119610.0,119600.0,0.0002]
[1755016601983,1.54791237,119610.0,119600.0,0.0002]
[1755016603594,1.59808237,119610.0,119600.0,0.0002]
[1755016603810,1.54791237,119610.0,119600.0,0.0002]
[1755016604062,1.6303968,119610.0,119600.0,0.0002]
[1755016604501,1.6303968,119610.0,119570.0,0.00424]
[1755016604502,0.73550365,119580.0,119570.0,0.00424]
[1755016604856,0.9541969,119580.0,119570.0,0.00424]
[1755016605073,0.9572369,119580.0,119570.0,0.00424]
[1755016605295,1.06483033,119580.0,119570.0,0.00424]
[1755016605953,0.98246806,119580.0,119570.0,0.00424]
[1755016606635,0.98446806,119580.0,119570.0,0.00424]
[1755016608241,0.98454806,119580.0,119570.0,0.00424]
[1755016609074,0.98454806,119580.0,119570.0,0.00396]
[1755016610298,0.85066806,119580.0,119570.0,0.00396]
[1755016610679,0.76273481,119580.0,119570.0,0.00606]
[1755016611110,0.74528579,119580.0,119570.0,0.00606]
[1755016611309,0.72017679,119580.0,119570.0,0.00606]
[1755016611540,0.73762581,119580.0,119570.0,0.00606]
[1755016611757,0.72017679,119580.0,119570.0,0.17332603]
[1755016612074,0.72017679,119580.0,119570.0,0.17517603]
[1755016612299,0.72017679,119580.0,119570.0,0.00606]
[1755016612522,0.72017679,119580.0,119570.0,0.14183388]
[1755016612741,0.1693742,119580.0,119570.0,0.30909991]
[1755016612968,0.71817679,119580.0,119570.0,0.13986]
[1755016613216,0.71817679,119580.0,119570.0,0.14286]
[1755016613432,0.80066122,119580.0,119570.0,0.14486]
[1755016613659,0.24985863,119580.0,119570.0,0.31409991]
[1755016613902,0.71817679,119580.0,119570.0,0.31212603]
[1755016614606,0.71817679,119580.0,119570.0,0.14486]
[1755016615249,0.71817679,119580.0,119570.0,0.31212603]
[1755016616619,0.1673742,119580.0,119570.0,0.31212603]
[1755016616846,0.7207901,119580.0,119570.0,0.31212603]
[1755016617069,0.55092475,119580.0,119570.0,0.31212603]
[1755016617273,0.55970688,119580.0,119570.0,0.31397603]
[1755016617487,0.71817679,119580.0,119570.0,0.31397603]
[1755016617699,0.55092475,119580.0,119570.0,0.31397603]
[1755016618153,0.71817679,119580.0,119570.0,0.31397603]
[1755016618791,0.55092475,119580.0,119570.0,0.31397603]
[1755016619058,0.71817679,119580.0,119570.0,0.31397603]
[1755016619284,0.71817679,119580.0,119570.0,0.31212603]
[1755016619786,0.71817679,119580.0,119570.0,0.39669928]
[1755016619787,0.55092475,119580.0,119570.0,0.39669928]
[1755016620029,0.00012216,119580.0,119570.0,0.39669928]
[1755016622315,0.55092475,119580.0,119570.0,0.39669928]
[1755016623542,0.00012216,119580.0,119570.0,0.39669928]
[1755016626124,0.55092475,119580.0,119570.0,0.39669928]
[1755016626700,0.56422731,119580.0,119570.0,0.39669928]
[1755016627586,0.56422731,119580.0,119570.0,0.39484928]
[1755016633395,0.00012216,119580.0,119570.0,0.39484928]
[1755016633570,0.56422731,119580.0,119570.0,0.39484928]
[1755016634036,0.00012216,119580.0,119570.0,0.54669928]
[1755016637570,0.56422731,119580.0,119570.0,0.54669928]
[1755016640300,0.56422731,119580.0,119570.0,0.54484928]
[1755016641857,0.56422731,119580.0,119570.0,0.54476928]
[1755016643750,0.56959731,119580.0,119570.0,0.54266928]
[1755016643951,0.56959731,119580.0,119570.0,0.54469928]
[1755016644163,0.56747731,119580.0,119570.0,0.54469928]
[1755016645154,0.00337216,119580.0,119570.0,0.54469928]
[1755016645339,0.56747731,119580.0,119570.0,0.54469928]
[1755016645599,0.56959731,119580.0,119570.0,0.54262928]
[1755016645818,0.63720771,119580.0,119570.0,0.54262928]
[1755016649632,0.07310256,119580.0,119570.0,0.54262928]
[1755016649821,0.00549216,119580.0,119570.0,0.54262928]
[1755016650051,0.00549216,119580.0,119570.0,0.54465928]
[1755016650052,0.56422731,119580.0,119570.0,0.54465928]
[1755016650708,0.00012216,119580.0,119570.0,0.54465928]
[1755016651537,0.56422731,119580.0,119570.0,0.54461928]
[1755016651718,0.56747731,119580.0,119570.0,0.54461928]
[1755016652353,0.00337216,119580.0,119570.0,0.54461928]
[1755016652552,0.56422731,119580.0,119570.0,0.54461928]
[1755016654013,0.00510216,119580.0,119570.0,0.54461928]
[1755016655746,0.00012216,119580.0,119570.0,0.54461928]
[1755016656139,0.00012216,119580.0,119570.0,0.54646928]
[1755016657238,0.00012216,119580.0,119570.0,0.54461928]
[1755016657669,0.00012216,119580.0,119570.0,0.54646928]
[1755016658309,0.00012216,119580.0,119570.0,0.54461928]
[1755016658515,0.40012216,119580.0,119570.0,0.54461928]
[1755016662816,0.40012216,119580.0,119570.0,0.54646928]
[1755016663267,0.40012216,119580.0,119570.0,1.11057443]
[1755016663482,0.40012216,119580.0,119570.0,1.33557443]
[1755016663956,0.00012216,119580.0,119570.0,1.36057443]
[1755016664400,0.00012216,119580.0,119570.0,1.35857443]
[1755016664630,0.00012216,119580.0,119570.0,2.51735043]
[1755016664854,0.00012216,119580.0,119570.0,2.49785943]
[1755016665072,1e-08,119580.0,119570.0,2.49785943]
[1755016665315,1e-08,119580.0,119570.0,2.64306341]
[1755016665527,1e-08,119580.0,119570.0,2.64006341]
[1755016665961,1e-08,119580.0,119570.0,2.64406341]
[1755016666175,1e-08,119580.0,119570.0,2.64006341]
[1755016666379,1e-08,119580.0,119570.0,2.07595826]
[1755016666585,1e-08,119580.0,119570.0,2.20504141]
[1755016666795,1e-08,119580.0,119570.0,2.20904141]
[1755016667452,1e-08,119580.0,119570.0,2.20504141]
[1755016667864,1e-08,119580.0,119570.0,2.20904141]
[1755016668514,1e-08,119580.0,119570.0,1.98303441]
[1755016668725,1e-08,119580.0,119570.0,1.92867641]
[1755016669197,1e-08,119580.0,119570.0,1.88830841]
[1755016669400,1e-08,119580.0,119570.0,1.69733443]
[1755016671249,1e-08,119580.0,119570.0,1.72242743]
[1755016672066,1e-08,119580.0,119570.0,1.61261743]
[1755016672271,1e-08,119580.0,119570.0,1.76272374]
[1755016672491,1e-08,119580.0,119570.0,1.75029274]
[1755016674896,1e-08,119580.0,119570.0,1.05069759]
[1755016675113,0.56908516,119580.0,119570.0,0.94730859]
[1755016675316,0.56908516,119580.0,119570.0,0.89721559]
[1755016675546,0.56908516,119580.0,119570.0,0.74710928]
[1755016675914,0.56908516,119580.0,119570.0,0.54646928]
[1755016676114,0.56908516,119580.0,119570.0,0.53746928]
[1755016676510,0.56908516,119580.0,119570.0,0.54146928]
[1755016676938,0.7363372,119580.0,119570.0,0.54146928]
[1755016677137,0.7363372,119580.0,119570.0,0.54546928]
[1755016677337,0.56908516,119580.0,119570.0,0.54546928]
[1755016677563,0.56908516,119580.0,119570.0,0.54146928]
[1755016677965,0.7363372,119580.0,119570.0,0.41094928]
[1755016678176,0.7363372,119580.0,119570.0,0.54446928]
[1755016678372,0.77378267,119580.0,119570.0,0.09368325]
[1755016678546,0.77872622,119580.0,119570.0,0.01096]
[1755016678748,0.77872622,119580.0,119570.0,0.14448]
[1755016678996,0.86121065,119580.0,119570.0,0.14448]
[1755016679209,0.86121065,119580.0,119570.0,0.14148]
[1755016679416,0.86121065,119580.0,119570.0,0.13948]
[1755016679621,0.86121065,119580.0,119570.0,0.39244316]
[1755016679622,0.56908516,119580.0,119570.0,0.39244316]
[1755016679821,0.56908516,119580.0,119570.0,0.38846928]
[1755016680349,0.56908516,119580.0,119570.0,0.38946928]
[1755016680921,0.56908516,119580.0,119570.0,0.25594928]
[1755016681131,0.7363372,119580.0,119570.0,0.38946928]
[1755016681350,0.25471648,119580.0,119570.0,0.08868325]
[1755016681567,0.8288876,119580.0,119570.0,0.22220325]
[1755016682911,0.74818553,119580.0,119570.0,0.22220325]
[1755016688684,0.76563455,119580.0,119570.0,0.00596]
[1755016688847,0.76563455,119580.0,119570.0,0.13944]
[1755016689252,0.76563455,119580.0,119570.0,0.00596]
[1755016689464,0.84811898,119580.0,119570.0,0.13944]
[1755016690164,0.84811898,119580.0,119570.0,0.13844]
[1755016690574,0.85645711,119580.0,119570.0,0.13844]
[1755016691439,0.74069455,119580.0,119570.0,0.30570603]
[1755016692135,0.18968107,119580.0,119570.0,0.30570603]
[1755016692344,0.74069455,119580.0,119570.0,0.30570603]
[1755016692575,0.55599349,119580.0,119570.0,0.38842928]
[1755016692794,1e-08,119580.0,119570.0,0.39047928]
[1755016693447,0.00205001,119580.0,119570.0,0.39047928]
[1755016693780,0.00530001,119580.0,119570.0,0.39047928]
[1755016694007,1e-08,119580.0,119570.0,0.39047928]
[1755016695271,1e-08,119580.0,119570.0,0.40086691]
[1755016696135,1e-08,119580.0,119570.0,0.39986691]
[1755016696562,1e-08,119580.0,119570.0,0.40286691]
[1755016696989,1e-08,119580.0,119570.0,0.40501691]
[1755016697412,1e-08,119580.0,119570.0,0.40686691]
[1755016698935,1e-08,119580.0,119570.0,0.40501691]
[1755016699360,0.55631349,119580.0,119570.0,0.40501691]
[1755016699708,0.55631349,119580.0,119570.0,0.40296691]
[1755016700129,0.00530001,119580.0,119570.0,0.40501691]
[1755016700352,1e-08,119580.0,119570.0,0.40501691]
[1755016700870,0.40000001,119580.0,119570.0,0.40501691]
[1755016703999,0.40530001,119580.0,119570.0,0.40296691]
[1755016704433,0.40000001,119580.0,119570.0,0.40501691]
[1755016704798,0.96400861,119580.0,119570.0,0.40501691]
[1755016705004,0.56400861,119580.0,119570.0,0.40501691]
[1755016707985,0.00205001,119580.0,119570.0,0.27153691]
[1755016708195,0.56930861,119580.0,119570.0,0.40284691]
[1755016710138,0.17255205,119580.0,119570.0,0.09368325]
[1755016710338,0.73656065,119580.0,119570.0,0.22704325]
[1755016711009,0.73656065,119580.0,119570.0,0.23531854]
[1755016711380,0.73656065,119580.0,119570.0,0.23231854]
[1755016711588,0.73656065,119580.0,119570.0,0.22104325]
[1755016712005,0.17255205,119580.0,119570.0,0.22204325]
[1755016712215,0.73656065,119580.0,119570.0,0.22204325]
[1755016712629,0.73656065,119580.0,119570.0,0.08868325]
[1755016712854,0.73656065,119580.0,119570.0,0.22228325]
[1755016713244,0.25503648,119580.0,119570.0,0.22228325]
[1755016713446,0.73656065,119580.0,119570.0,0.22228325]
[1755016713651,0.75400967,119580.0,119570.0,0.00596]
[1755016713861,0.75400967,119580.0,119570.0,0.13952]
[1755016714462,0.73656065,119580.0,119570.0,0.13952]
[1755016714667,0.73656065,119580.0,119570.0,0.13852]
[1755016714868,0.73656065,119580.0,119570.0,0.13752]
[1755016715279,0.76527048,119580.0,119570.0,0.13752]
[1755016715442,0.73656065,119580.0,119570.0,0.13752]
[1755016715862,0.73656065,119580.0,119570.0,0.13949388]
[1755016716239,0.17255205,119580.0,119570.0,0.13752]
[1755016716666,0.73656065,119580.0,119570.0,0.13752]
[1755016718165,0.73656065,119580.0,119570.0,0.00396]
[1755016718371,0.73656065,119580.0,119570.0,0.14112]
[1755016721224,0.75400967,119580.0,119570.0,0.14112]
[1755016721637,1.33177212,119580.0,119570.0,0.14112]
[1755016721839,1.31801827,119580.0,119570.0,0.14112]
[1755016722679,1.31801827,119580.0,119570.0,0.00396]
[1755016722915,1.34312527,119580.0,119570.0,0.14076]
[1755016726230,1.35130504,119580.0,119570.0,0.14076]
[1755016726438,1.35130504,119580.0,119570.0,0.00396]
[1755016726678,1.43378947,119580.0,119570.0,0.14044]
[1755016727562,1.43378947,119580.0,119570.0,0.00396]
[1755016727984,0.86978087,119580.0,119570.0,0.14036]
[1755016728194,0.77911667,119580.0,119570.0,0.14036]
[1755016728433,0.78759929,119580.0,119570.0,0.14036]
[1755016728597,0.77911667,119580.0,119570.0,0.14036]
[1755016728797,0.77911667,119580.0,119570.0,0.14032]
[1755016734065,0.77911667,119580.0,119570.0,0.13988]
[1755016734274,0.8616011,119580.0,119570.0,0.13988]
[1755016734485,1.4256097,119580.0,119570.0,0.00396]
[1755016735946,0.2975925,119580.0,119570.0,0.14724]
[1755016736148,1.4256097,119580.0,119570.0,0.14724]
[1755016736558,0.77911667,119580.0,119570.0,0.14724]
[1755016737211,0.78011667,119580.0,119570.0,0.14724]
[1755016737684,0.75500967,119580.0,119570.0,0.14724]
[1755016738088,0.78011667,119580.0,119570.0,0.14724]
[1755016738370,0.75500967,119580.0,119570.0,0.14724]
[1755016738645,0.75700967,119580.0,119570.0,0.14724]
[1755016739092,0.25570582,119580.0,119570.0,0.14724]
[1755016739314,0.81971442,119580.0,119570.0,0.14724]
[1755016739528,0.79460742,119580.0,119570.0,0.14724]
[1755016739927,0.75700967,119580.0,119570.0,0.14724]
[1755016740132,0.75700967,119580.0,119570.0,0.14939]
[1755016740547,0.73426065,119580.0,119570.0,0.15136388]
[1755016740981,0.17025205,119580.0,119570.0,0.15136388]
[1755016741159,0.73426065,119580.0,119570.0,0.15136388]
[1755016741961,0.73745065,119580.0,119570.0,0.15136388]
[1755016742776,0.17025205,119580.0,119570.0,0.31862991]
[1755016743043,0.17025205,119580.0,119570.0,0.31665603]
[1755016743277,0.73426065,119580.0,119570.0,0.39937928]
[1755016743492,0.56700861,119580.0,119570.0,0.40122928]
[1755016744150,0.73426065,119580.0,119570.0,0.40122928]
[1755016744357,0.16925205,119580.0,119570.0,0.39937928]
[1755016744598,0.56600861,119580.0,119570.0,0.39937928]
[1755016744817,0.73126065,119580.0,119570.0,0.39937928]
[1755016749009,0.56400861,119580.0,119570.0,0.39937928]
[1755016749728,1e-08,119580.0,119570.0,0.40122928]
[1755016750788,0.56400861,119580.0,119570.0,0.40322928]
[1755016751212,1e-08,119580.0,119570.0,0.40322928]
[1755016751415,1e-08,119580.0,119570.0,0.40522928]
[1755016753124,0.56400861,119580.0,119570.0,0.40522928]
[1755016755914,1e-08,119580.0,119570.0,0.40522928]
[1755016756325,0.56400861,119580.0,119570.0,0.40522928]
[1755016756562,1e-08,119580.0,119570.0,0.40522928]
[1755016757338,0.56400861,119580.0,119570.0,0.40522928]
[1755016758353,0.56400861,119580.0,119570.0,0.40337928]
[1755016764986,0.00308001,119580.0,119570.0,0.40337928]
[1755016765206,0.56708861,119580.0,119570.0,0.40337928]
[1755016765844,0.00308001,119580.0,119570.0,0.40337928]
[1755016766027,0.56708861,119580.0,119570.0,0.40337928]
[1755016766686,0.00308001,119580.0,119570.0,0.40337928]
[1755016766897,0.56708861,119580.0,119570.0,0.40337928]
[1755016767118,0.00308001,119580.0,119570.0,0.40337928]
[1755016767554,0.56708861,119580.0,119570.0,0.40337928]
[1755016767766,0.00308001,119580.0,119570.0,0.40337928]
[1755016767951,0.56708861,119580.0,119570.0,0.40337928]
[1755016768434,0.56400861,119580.0,119570.0,0.40337928]
[1755016769081,0.56708861,119580.0,119570.0,0.40337928]
[1755016771229,0.56912861,119580.0,119570.0,0.40337928]
[1755016771863,0.00512001,119580.0,119570.0,0.40337928]
[1755016772060,0.56912861,119580.0,119570.0,0.40337928]
[1755016772279,1e-08,119580.0,119570.0,0.40337928]
[1755016772479,0.56400861,119580.0,119570.0,0.40337928]
[1755016773067,1e-08,119580.0,119570.0,0.40337928]
[1755016773274,0.56400861,119580.0,119570.0,0.40337928]
[1755016773628,0.56400861,119580.0,119570.0,0.40522928]
[1755016774172,0.56400861,119580.0,119570.0,0.40337928]
[1755016774762,1e-08,119580.0,119570.0,0.40337928]
[1755016774963,1e-08,119580.0,119570.0,0.40522928]
[1755016778443,0.40000001,119580.0,119570.0,0.40522928]
[1755016778647,0.96400861,119580.0,119570.0,0.40522928]
[1755016779057,0.40000001,119580.0,119570.0,0.40337928]
[1755016779468,0.96400861,119580.0,119570.0,0.40337928]
[1755016780016,0.40000001,119580.0,119570.0,0.40337928]
[1755016780219,0.96400861,119580.0,119570.0,0.40522928]
[1755016780446,0.96400861,119580.0,119570.0,0.40337928]
[1755016781781,0.40000001,119580.0,119570.0,0.40337928]
[1755016783843,0.96400861,119580.0,119570.0,0.40337928]
[1755016784049,0.96697861,119580.0,119570.0,0.40337928]
[1755016785911,0.40000001,119580.0,119570.0,0.40337928]
[1755016787398,0.40498001,119580.0,119570.0,0.39690928]
[1755016787627,0.96898861,119580.0,119570.0,0.39690928]
[1755016787841,1.13624065,119580.0,119570.0,0.39690928]
[1755016788052,1.21872508,119580.0,119570.0,0.09068325]
[1755016788479,1.13624065,119580.0,119570.0,0.39880316]
[1755016788718,1.13624065,119580.0,119570.0,0.22956325]
[1755016788913,1.13624065,119580.0,119570.0,0.39482928]
[1755016789151,0.57223205,119580.0,119570.0,0.22556325]
[1755016789327,1.13624065,119580.0,119570.0,0.22656325]
[1755016789585,0.40498001,119580.0,119570.0,0.39482928]
[1755016789791,1.13624065,119580.0,119570.0,0.39482928]
[1755016790437,1.13624065,119580.0,119570.0,0.22756325]
[1755016791073,1.13624065,119580.0,119570.0,0.22752325]
[1755016791413,1.13624065,119580.0,119570.0,0.08868325]
[1755016791627,1.13624065,119580.0,119570.0,0.22752325]
[1755016791851,1.13624065,119580.0,119570.0,0.08868325]
[1755016792049,1.13624065,119580.0,119570.0,0.22945713]
[1755016792268,1.13624065,119580.0,119570.0,0.22748325]
[1755016792812,0.25471648,119580.0,119570.0,0.22748325]
[1755016792969,0.73624065,119580.0,119570.0,0.22748325]
[1755016794791,0.17223205,119580.0,119570.0,0.22748325]
[1755016795009,0.17223205,119580.0,119570.0,0.39474928]
[1755016795499,0.00498001,119580.0,119570.0,0.39474928]
[1755016795746,0.56898861,119580.0,119570.0,0.39478928]
[1755016796694,0.00498001,119580.0,119570.0,0.39478928]
[1755016797067,0.56898861,119580.0,119570.0,0.39478928]
[1755016798037,0.00498001,119580.0,119570.0,0.39478928]
[1755016798498,1e-08,119580.0,119570.0,0.39675928]
[1755016798726,1e-08,119580.0,119570.0,0.96076788]
[1755016798926,1e-08,119580.0,119570.0,0.96261788]
[1755016799737,1e-08,119580.0,119570.0,0.39860928]
[1755016799942,1e-08,119580.0,119570.0,0.96261788]
[1755016800623,1e-08,119580.0,119570.0,0.39860928]
[1755016801771,1e-08,119580.0,119570.0,0.96261788]
[1755016801983,1e-08,119580.0,119570.0,1.18761788]
[1755016802484,1e-08,119580.0,119570.0,2.10321288]
[1755016802715,1e-08,119580.0,119570.0,1.98730288]
[1755016803225,1e-08,119580.0,119570.0,1.44703888]
[1755016803459,1e-08,119580.0,119570.0,1.4716746]
[1755016803693,1e-08,119580.0,119570.0,0.905666]
[1755016803891,1e-08,119580.0,119570.0,1.61978091]
[1755016804917,1e-08,119580.0,119570.0,1.61878091]
[1755016805142,1e-08,119580.0,119570.0,1.62678091]
[1755016805382,1e-08,119580.0,119570.0,1.62178091]
[1755016805628,1e-08,119580.0,119570.0,1.61878091]
[1755016805913,1e-08,119580.0,119570.0,1.62378091]
[1755016806147,1e-08,119580.0,119570.0,1.77778091]
[1755016806384,1e-08,119580.0,119570.0,1.81939993]
[1755016806841,3.0,119620.0,119610.0,0.74221009]
[1755016807037,3.00014679,119620.0,119610.0,3.07127123]
[1755016807308,3.00014679,119620.0,119610.0,1.36262263]
[1755016807533,3.00014679,119620.0,119610.0,1.92663123]
[1755016808698,3.00014679,119620.0,119610.0,1.92963123]
[1755016808930,3.00014679,119620.0,119610.0,1.36562263]
[1755016809153,3.00014679,119620.0,119610.0,1.36662263]
[1755016809375,3.00014679,119620.0,119610.0,1.93063123]
[1755016810064,3.00014679,119620.0,119610.0,1.95571623]
[1755016810295,2.61222094,119620.0,119610.0,1.98071623]
[1755016810522,2.43028081,119620.0,119610.0,2.13071623]
[1755016810751,2.28524293,119620.0,119610.0,2.13071623]
[1755016811204,2.28524293,119620.0,119610.0,2.12971623]
[1755016811434,2.28524293,119620.0,119610.0,2.13071623]
[1755016811872,2.28524293,119620.0,119610.0,2.13171623]
[1755016812096,2.28524293,119620.0,119610.0,1.56270763]
[1755016812336,2.28524293,119620.0,119610.0,1.56670763]
[1755016812558,2.28524293,119620.0,119610.0,1.57170763]
[1755016813687,2.28524293,119620.0,119610.0,1.56985763]
[1755016814196,2.28524293,119620.0,119610.0,1.65788763]
[1755016814439,2.28524293,119620.0,119610.0,1.56985763]
[1755016814898,2.28524293,119620.0,119610.0,1.43165763]
[1755016815118,2.85435153,119620.0,119610.0,1.16636763]
[1755016815333,2.85435153,119620.0,119610.0,1.14030163]
[1755016815534,2.85435153,119620.0,119610.0,1.04267863]
[1755016816154,2.85435153,119620.0,119610.0,1.03367863]
[1755016817452,2.85435153,119620.0,119610.0,1.30944363]
[1755016817660,2.29034293,119620.0,119610.0,1.81986923]
[1755016818303,2.29034293,119620.0,119610.0,1.80389323]
[1755016818531,2.29034293,119620.0,119610.0,0.84911863]
[1755016818735,2.29034293,119620.0,119610.0,0.98651863]
[1755016818954,2.29034293,119620.0,119610.0,0.96143363]
[1755016819807,2.28524293,119620.0,119610.0,0.96143363]
[1755016820029,2.28524293,119620.0,119610.0,0.96139363]
[1755016820454,2.28524293,119620.0,119610.0,0.95839363]
[1755016820669,2.28524293,119620.0,119610.0,0.96039363]
[1755016821669,2.28524293,119620.0,119610.0,0.96139363]
[1755016821864,2.28524293,119620.0,119610.0,1.52540223]
[1755016822449,2.28524293,119620.0,119610.0,0.62403363]
[1755016822860,2.45243905,119620.0,119610.0,0.59406354]
[1755016823066,3.01644765,119620.0,119610.0,0.30682354]
[1755016823241,3.09893208,119620.0,119610.0,0.30682354]
[1755016823422,3.01644765,119620.0,119610.0,0.44406354]
[1755016823624,2.45243905,119620.0,119610.0,0.10618354]
[1755016823864,3.01644765,119620.0,119610.0,0.24350354]
[1755016824069,2.45243905,119620.0,119610.0,0.24350354]
[1755016824268,2.45243905,119620.0,119610.0,0.24150354]
[1755016825079,2.45243905,119620.0,119610.0,0.24050354]
[1755016825263,2.45443905,119620.0,119610.0,0.24050354]
[1755016826378,3.08956135,119620.0,119610.0,0.24050354]
[1755016827121,3.08956135,119620.0,119590.0,0.32559996]
[1755016827122,0.16722408,119600.0,119590.0,0.15]
[1755016827309,0.16722408,119600.0,119590.0,0.36988325]
[1755016827542,0.73123113,119610.0,119590.0,0.53712131]
[1755016827672,0.16722408,119600.0,119590.0,0.45439806]
[1755016827869,0.16722408,119600.0,119590.0,0.53712131]
[1755016828198,0.16722408,119600.0,119590.0,0.53912131]
[1755016829011,0.73123113,119610.0,119590.0,0.54012131]
[1755016829216,0.16721009,119610.0,119600.0,0.24994733]
[1755016829428,0.16982274,119610.0,119600.0,0.08272325]
[1755016830146,0.16982274,119610.0,119600.0,0.24994733]
[1755016830751,0.17182274,119610.0,119600.0,0.24994733]
[1755016830985,0.16921009,119610.0,119600.0,0.24994733]
[1755016831535,0.16921009,119610.0,119600.0,0.08272325]
[1755016831668,0.16921009,119610.0,119600.0,0.21972325]
[1755016832484,0.16921009,119610.0,119600.0,0.08272325]
[1755016832673,0.16921009,119610.0,119600.0,0.21972325]
[1755016832874,0.16921009,119610.0,119600.0,0.38694733]
[1755016833487,0.16921009,119610.0,119600.0,0.21972325]
[1755016833689,0.16921009,119610.0,119600.0,0.38694733]
[1755016835170,0.16921009,119610.0,119600.0,0.21972325]
[1755016835876,0.16921009,119610.0,119600.0,0.38694733]
[1755016836466,0.16921009,119610.0,119600.0,0.24994733]
[1755016836675,0.16921009,119610.0,119600.0,0.21944325]
[1755016837258,0.16921009,119610.0,119600.0,0.38666733]
[1755016838446,0.16921009,119610.0,119600.0,0.21944325]
[1755016839625,0.16921009,119610.0,119600.0,0.38666733]
[1755016841916,0.16921009,119610.0,119600.0,0.95067593]
[1755016841917,0.002,119610.0,119600.0,0.95067593]
[1755016842304,0.002,119610.0,119600.0,1.51468453]
[1755016842665,0.002,119610.0,119600.0,0.95067593]